[Event "Cellavision Cup 2019"]
[Site "Lund"]
[Date "2019.08.02"]
[Round "2.6"]
[White "Blomqvist, Erik"]
[Black "Petersen, Steen"]
[Result "1-0"]
[ECO "C84"]
[WhiteElo "2492"]
[BlackElo "2129"]
[Annotator "ChessBase"]
[PlyCount "65"]
[EventDate "2019.08.02"]
[EventType "swiss"]
[EventCountry "SWE"]
[SourceTitle "playchess.com"]
[Source "ChessBase"]
[SourceQuality "1"]
[TimeControl "900+5"]

1. e4 {[%emt 0:00:00]} e5 {[%emt 0:00:00]} 2. Nf3 {[%emt 0:00:00]} Nc6 {[%emt 0:00:00]} 3. Bb5 {[%emt 0:00:00]} a6 {[%emt 0:00:00]} 4. Ba4 {[%emt 0:00:01]} Nf6 {[%emt 0:00:01]} 5. O-O {[%emt 0:00:04]} Be7 {[%emt 0:00:02]} 6. d3 {[%emt 0:00:08]} b5 {[%emt 0:00:17]} 7. Bb3 {[%emt 0:00:01]} O-O {[%emt 0:00:05]} 8. Nc3 {[%emt 0:00:02]} h6 {[%emt 0:01:00]} 9. h3 {[%emt 0:01:01]} d6 {[%emt 0:00:02]} 10. a3 {[%emt 0:00:18]} Na5 {[%emt 0:00:43]} 11. Ba2 {[%emt 0:00:02]} c5 {[%emt 0:00:01]} 12. b4 {[%emt 0:00:40]} Nc6 {[%emt 0:00:43]} 13. Nd5 {[%emt 0:00:02]} Re8 {[%emt 0:02:32]} 14. c3 {[%emt 0:01:12]} Bf8 {[%emt 0:00:15]} 15. Be3 {[%emt 0:00:31]} Be6 {[%emt 0:01:17]} 16. Re1 {[%emt 0:01:54]} Bxd5 {[%emt 0:01:56]} 17. exd5 {[%emt 0:00:02]} Ne7 {[%emt 0:00:10]} 18. bxc5 {[%emt 0:00:16]} Nexd5 {[%emt 0:00:03]} 19. Bd2 {[%emt 0:00:19]} Rc8 {[%emt 0:01:03]} 20. cxd6 {[%emt 0:01:10]} Nxc3 {[%emt 0:00:51]} 21. Bxc3 {[%emt 0:00:24]} Rxc3 {[%emt 0:00:03]} 22. Nxe5 {[%emt 0:00:15]} Rxe5 {[%emt 0:00:31]} 23. Rxe5 {[%emt 0:00:02]} Qxd6 {[%emt 0:00:20]} 24. d4 {[%emt 0:00:33]} Rxa3 {[%emt 0:00:43]} 25. Bb3 {[%emt 0:01:45]} Qc7 {[%emt 0:01:46]} 26. Rxa3 {[%emt 0:03:06]} Bxa3 {[%emt 0:00:02]} 27. Re2 {[%emt 0:01:08]} Bd6 {[%emt 0:01:22]} 28. Rc2 {[%emt 0:00:15]} Qd7 {[%emt 0:00:19]} 29. Qf3 {[%emt 0:00:23]} Qa7 {[%emt 0:00:11]} 30. Rc8+ {[%emt 0:00:11]} Bf8 {[%emt 0:00:10]} 31. Qa8 {[%emt 0:00:25]} Qe7 {[%emt 0:00:21]} 32. g3 {[%emt 0:00:28]} Ne8 {[%emt 0:00:37]} 33. Rxe8 {[%emt 0:00:05]} 1-0

[Event "Cellavision Cup 2019"]
[Site "Lund"]
[Date "2019.08.02"]
[Round "2.8"]
[White "Cramling, Pia"]
[Black "Fransson, Patrick"]
[Result "1-0"]
[ECO "A04"]
[WhiteElo "2479"]
[BlackElo "2113"]
[Annotator "ChessBase"]
[PlyCount "51"]
[EventDate "2019.08.02"]
[EventType "swiss"]
[EventCountry "SWE"]
[SourceTitle "playchess.com"]
[Source "ChessBase"]
[SourceQuality "1"]
[TimeControl "900+5"]

1. Nf3 {[%emt 0:00:00]} d6 {[%emt 0:00:14]} 2. d4 {[%emt 0:00:00]} g6 {[%emt 0:00:03]} 3. g3 {[%emt 0:00:04]} Bg7 {[%emt 0:00:03]} 4. Bg2 {[%emt 0:00:01]} Nf6 {[%emt 0:00:06]} 5. b3 {[%emt 0:00:08]} O-O {[%emt 0:00:07]} 6. Bb2 {[%emt 0:00:00]} c6 {[%emt 0:00:26]} 7. O-O {[%emt 0:00:11]} Qc7 {[%emt 0:00:47]} 8. Nbd2 {[%emt 0:00:29]} Nbd7 {[%emt 0:00:06]} 9. e4 {[%emt 0:00:13]} Ne8 {[%emt 0:01:29]} 10. c4 {[%emt 0:00:09]} e5 {[%emt 0:00:15]} 11. Qc2 {[%emt 0:00:25]} f5 {[%emt 0:01:02]} 12. Ng5 {[%emt 0:00:37]} Ndf6 {[%emt 0:00:33]} 13. dxe5 {[%emt 0:00:45]} dxe5 {[%emt 0:00:02]} 14. c5 {[%emt 0:00:06]} h6 {[%emt 0:01:16]} 15. Qc4+ {[%emt 0:00:37]} Kh8 {[%emt 0:00:02]} 16. Ne6 {[%emt 0:00:06]} Bxe6 {[%emt 0:01:10]} 17. Qxe6 {[%emt 0:00:02]} Qa5 {[%emt 0:00:30]} 18. Nc4 {[%emt 0:00:10]} Qxc5 {[%emt 0:01:22]} 19. Ba3 {[%emt 0:00:03]} Qb5 {[%emt 0:01:03]} 20. Bxf8 {[%emt 0:00:09]} Bxf8 {[%emt 0:00:02]} 21. Nxe5 {[%emt 0:00:04]} Bg7 {[%emt 0:00:41]} 22. Nxg6+ {[%emt 0:00:14]} Kh7 {[%emt 0:00:00]} 23. Ne7 {[%emt 0:00:40]} Nc7 {[%emt 0:00:17]} 24. Qf7 {[%emt 0:00:18]} fxe4 {[%emt 0:01:09]} 25. Qg6+ {[%emt 0:00:07]} Kh8 {[%emt 0:00:00]} 26. Nf5 {[%emt 0:00:03]} 1-0

[Event "Cellavision Cup 2019"]
[Site "Lund"]
[Date "2019.08.02"]
[Round "2.9"]
[White "Ollen, Martin"]
[Black "Dourerassou, Jonathan"]
[Result "0-1"]
[ECO "B33"]
[WhiteElo "2096"]
[BlackElo "2477"]
[Annotator "ChessBase"]
[PlyCount "80"]
[EventDate "2019.08.02"]
[EventType "swiss"]
[EventCountry "SWE"]
[SourceTitle "playchess.com"]
[Source "ChessBase"]
[SourceQuality "1"]
[TimeControl "900+5"]

1. e4 {[%emt 0:00:00]} c5 {[%emt 0:00:00]} 2. Nf3 {[%emt 0:00:02]} Nc6 {[%emt 0:00:00]} 3. d4 {[%emt 0:00:02]} cxd4 {[%emt 0:00:00]} 4. Nxd4 {[%emt 0:00:01]} Nf6 {[%emt 0:00:01]} 5. Nc3 {[%emt 0:00:01]} e6 {[%emt 0:00:01]} 6. Be3 {[%emt 0:00:21]} Bb4 {[%emt 0:00:03]} 7. f3 {[%emt 0:00:20]} d5 {[%emt 0:00:10]} 8. Bb5 {[%emt 0:02:39]} Bd7 {[%emt 0:00:11]} 9. Bxc6 {[%emt 0:00:19]} bxc6 {[%emt 0:00:07]} 10. e5 {[%emt 0:01:00]} Ng8 {[%emt 0:02:09]} 11. O-O {[%emt 0:03:15]} c5 {[%emt 0:00:26]} 12. Ndb5 {[%emt 0:00:07]} d4 {[%emt 0:00:23]} 13. Nd6+ {[%emt 0:00:03]} Kf8 {[%emt 0:00:02]} 14. Nce4 {[%emt 0:01:42]} dxe3 {[%emt 0:00:18]} 15. a3 {[%emt 0:00:18]} Bd2 {[%emt 0:00:38]} 16. Nxd2 {[%emt 0:02:29]} exd2 {[%emt 0:00:05]} 17. Qxd2 {[%emt 0:00:01]} Ne7 {[%emt 0:00:39]} 18. Rfd1 {[%emt 0:00:13]} Be8 {[%emt 0:00:10]} 19. b4 {[%emt 0:00:42]} cxb4 {[%emt 0:00:35]} 20. axb4 {[%emt 0:00:01]} Nf5 {[%emt 0:00:24]} 21. c4 {[%emt 0:00:27]} Nxd6 {[%emt 0:00:17]} 22. exd6 {[%emt 0:00:02]} Bd7 {[%emt 0:00:01]} 23. c5 {[%emt 0:01:03]} Qc8 {[%emt 0:00:02]} 24. Rdc1 {[%emt 0:00:12]} Qc6 {[%emt 0:00:02]} 25. Ra5 {[%emt 0:00:09]} a6 {[%emt 0:00:07]} 26. Qa2 {[%emt 0:00:56]} Qb7 {[%emt 0:00:10]} 27. Rb1 {[%emt 0:00:11]} Bb5 {[%emt 0:00:11]} 28. Qd2 {[%emt 0:00:04]} Rd8 {[%emt 0:00:07]} 29. Rc1 {[%emt 0:00:04]} Qc6 {[%emt 0:00:03]} 30. Ra3 {[%emt 0:00:09]} f6 {[%emt 0:00:06]} 31. Re3 {[%emt 0:00:15]} Kf7 {[%emt 0:00:03]} 32. Qd4 {[%emt 0:00:09]} Rhe8 {[%emt 0:00:08]} 33. h4 {[%emt 0:00:05]} e5 {[%emt 0:00:25]} 34. Qg4 {[%emt 0:00:02]} Rxd6 {[%emt 0:00:30]} 35. h5 {[%emt 0:00:11]} Rd4 {[%emt 0:00:22]} 36. Re4 {[%emt 0:00:09]} Rxe4 {[%emt 0:00:07]} 37. fxe4 {[%emt 0:00:02]} Qd7 {[%emt 0:00:11]} 38. Qg3 {[%emt 0:00:16]} Rd8 {[%emt 0:00:11]} 39. h6 {[%emt 0:00:05]} g6 {[%emt 0:00:02]} 40. Kh2 {[%emt 0:00:01]} Qd2 {[%emt 0:00:03]} 0-1

[Event "Cellavision Cup 2019"]
[Site "Lund"]
[Date "2019.08.02"]
[Round "2.10"]
[White "Popilski, Gil"]
[Black "Eriksson, Kristian"]
[Result "1-0"]
[ECO "C92"]
[WhiteElo "2467"]
[BlackElo "2123"]
[Annotator "ChessBase"]
[PlyCount "71"]
[EventDate "2019.08.02"]
[EventType "swiss"]
[EventCountry "SWE"]
[SourceTitle "playchess.com"]
[Source "ChessBase"]
[SourceQuality "1"]
[TimeControl "900+5"]

1. e4 {[%emt 0:00:00]} e5 {[%emt 0:00:00]} 2. Nf3 {[%emt 0:00:02]} Nc6 {[%emt 0:00:01]} 3. Bb5 {[%emt 0:00:02]} a6 {[%emt 0:00:03]} 4. Ba4 {[%emt 0:00:01]} Nf6 {[%emt 0:00:04]} 5. O-O {[%emt 0:00:03]} Be7 {[%emt 0:00:11]} 6. Re1 {[%emt 0:00:03]} b5 {[%emt 0:00:04]} 7. Bb3 {[%emt 0:00:01]} d6 {[%emt 0:00:02]} 8. c3 O-O {[%emt 0:00:06]} 9. h3 {[%emt 0:00:39]} Nd7 {[%emt 0:00:10]} 10. d4 {[%emt 0:00:02]} Bf6 {[%emt 0:00:03]} 11. d5 {[%emt 0:00:34]} Ne7 {[%emt 0:00:38]} 12. a4 {[%emt 0:00:03]} Bb7 {[%emt 0:01:16]} 13. axb5 {[%emt 0:00:19]} axb5 {[%emt 0:00:02]} 14. Rxa8 {[%emt 0:00:02]} Qxa8 {[%emt 0:00:10]} 15. Na3 {[%emt 0:00:02]} Ba6 {[%emt 0:00:22]} 16. Nc2 {[%emt 0:00:41]} Nc5 {[%emt 0:01:29]} 17. Ba2 {[%emt 0:01:41]} Ng6 {[%emt 0:00:31]} 18. Bb1 {[%emt 0:03:26]} Bc8 {[%emt 0:02:00]} 19. Ne3 {[%emt 0:00:27]} Nf4 {[%emt 0:00:34]} 20. Ng4 {[%emt 0:01:16]} Bxg4 {[%emt 0:01:02]} 21. hxg4 {[%emt 0:00:02]} h6 {[%emt 0:01:00]} 22. g3 {[%emt 0:01:25]} Ng6 {[%emt 0:01:21]} 23. Kg2 {[%emt 0:01:12]} c6 {[%emt 0:01:21]} 24. dxc6 {[%emt 0:00:32]} Qxc6 {[%emt 0:00:10]} 25. g5 {[%emt 0:00:05]} hxg5 {[%emt 0:00:04]} 26. Nxg5 {[%emt 0:00:03]} Bxg5 {[%emt 0:00:29]} 27. Bxg5 {[%emt 0:00:02]} Ne6 {[%emt 0:00:03]} 28. Be3 {[%emt 0:00:24]} Ra8 {[%emt 0:01:07]} 29. Bc2 {[%emt 0:00:35]} Ra2 {[%emt 0:00:19]} 30. Qb1 {[%emt 0:00:14]} Qa8 {[%emt 0:00:16]} 31. Bb3 {[%emt 0:00:04]} Ra6 {[%emt 0:00:20]} 32. Bd5 {[%emt 0:01:44]} Qc8 {[%emt 0:00:31]} 33. Qd1 {[%emt 0:00:12]} Nc7 {[%emt 0:00:47]} 34. Bb3 {[%emt 0:00:07]} Qa8 {[%emt 0:00:03]} 35. Qf3 {[%emt 0:00:10]} Ra1 {[%emt 0:00:09]} 36. Bxf7+ {[%emt 0:00:11]} 1-0

[Event "Cellavision Cup 2019"]
[Site "Lund"]
[Date "2019.08.02"]
[Round "2.11"]
[White "Brondal, Paul"]
[Black "Smith, Axel"]
[Result "0-1"]
[ECO "B41"]
[WhiteElo "2090"]
[BlackElo "2469"]
[Annotator "ChessBase"]
[PlyCount "46"]
[EventDate "2019.08.02"]
[EventType "swiss"]
[EventCountry "SWE"]
[SourceTitle "playchess.com"]
[Source "ChessBase"]
[SourceQuality "1"]
[TimeControl "900+5"]

1. e4 {[%emt 0:00:00]} c5 {[%emt 0:00:05]} 2. Nf3 {[%emt 0:00:01]} e6 {[%emt 0:00:01]} 3. d4 {[%emt 0:00:06]} cxd4 {[%emt 0:00:01]} 4. Nxd4 a6 5. c4 {[%emt 0:00:07]} Nf6 {[%emt 0:00:06]} 6. Nc3 {[%emt 0:00:05]} Qc7 {[%emt 0:00:02]} 7. Be2 {[%emt 0:00:17]} Bb4 {[%emt 0:00:18]} 8. O-O {[%emt 0:00:25]} Bxc3 {[%emt 0:01:00]} 9. bxc3 {[%emt 0:00:01]} Nxe4 {[%emt 0:00:02]} 10. Qd3 {[%emt 0:00:22]} Nc5 {[%emt 0:00:06]} 11. Qe3 {[%emt 0:00:15]} O-O {[%emt 0:00:10]} 12. Ba3 {[%emt 0:00:22]} d6 {[%emt 0:00:05]} 13. Nb3 {[%emt 0:00:18]} b6 {[%emt 0:00:11]} 14. Rad1 {[%emt 0:00:28]} Bb7 {[%emt 0:04:43]} 15. Qd4 {[%emt 0:00:54]} Rd8 {[%emt 0:00:36]} 16. Qh4 {[%emt 0:01:27]} Nbd7 {[%emt 0:00:25]} 17. Qe7 {[%emt 0:00:34]} Ne4 {[%emt 0:01:41]} 18. Bxd6 {[%emt 0:00:45]} Qc8 {[%emt 0:00:38]} 19. Be5 {[%emt 0:00:35]} Nxe5 {[%emt 0:01:45]} 20. Rxd8+ {[%emt 0:00:23]} Qxd8 {[%emt 0:00:02]} 21. Qxb7 {[%emt 0:00:02]} Nd6 {[%emt 0:00:34]} 22. Qxa8 {[%emt 0:01:00]} Qxa8 {[%emt 0:00:01]} 23. Rd1 {[%emt 0:00:01]} Ne4 {[%emt 0:00:19]} 0-1

[Event "Cellavision Cup 2019"]
[Site "Lund"]
[Date "2019.08.02"]
[Round "2.12"]
[White "Hansen, Torbjorn Ringdal"]
[Black "Kring, Stephan"]
[Result "1-0"]
[ECO "C44"]
[WhiteElo "2432"]
[BlackElo "2064"]
[Annotator "NA"]
[PlyCount "85"]
[EventDate "2019.08.02"]
[EventType "swiss"]
[EventCountry "SWE"]
[SourceTitle "playchess.com"]
[Source "ChessBase"]
[SourceQuality "1"]
[TimeControl "900+5"]

1. e4 {[%emt 0:00:00]} e5 {[%emt 0:00:00]} 2. Nf3 {[%emt 0:00:01]} Nc6 {[%emt 0:00:00]} 3. d4 {[%emt 0:00:01]} exd4 {[%emt 0:00:03]} 4. Bc4 {[%emt 0:00:02]} Bc5 {[%emt 0:00:36]} 5. Ng5 {[%emt 0:00:07]} Nh6 {[%emt 0:00:24]} 6. Nxf7 {[%emt 0:00:04]} Nxf7 {[%emt 0:00:01]} 7. Bxf7+ {[%emt 0:00:02]} Kxf7 {[%emt 0:00:01]} 8. Qh5+ {[%emt 0:00:02]} Kf8 {[%emt 0:00:01]} 9. Qxc5+ {[%emt 0:00:04]} Qe7 {[%emt 0:00:00]} 10. Qxe7+ {[%emt 0:01:28]} Kxe7 {[%emt 0:00:02]} 11. O-O {[%emt 0:00:16]} d6 {[%emt 0:00:24]} 12. Rd1 {[%emt 0:00:50]} Be6 {[%emt 0:00:42]} 13. c3 {[%emt 0:00:46]} dxc3 {[%emt 0:00:03]} 14. Nxc3 {[%emt 0:00:02]} h6 {[%emt 0:00:51]} 15. b3 {[%emt 0:00:41]} a5 {[%emt 0:01:18]} 16. Bb2 {[%emt 0:00:04]} Nb4 {[%emt 0:00:04]} 17. Nb5 {[%emt 0:00:43]} Rac8 {[%emt 0:00:21]} 18. Bxg7 {[%emt 0:01:07]} Rh7 {[%emt 0:00:01]} 19. Bc3 {[%emt 0:00:24]} Nxa2 {[%emt 0:00:18]} 20. Rxa2 {[%emt 0:00:22]} Bxb3 {[%emt 0:00:02]} 21. Rda1 {[%emt 0:00:11]} Bxa2 {[%emt 0:00:02]} 22. Rxa2 {[%emt 0:00:02]} b6 {[%emt 0:00:26]} 23. f4 {[%emt 0:00:10]} Kd7 {[%emt 0:00:37]} 24. Kf2 {[%emt 0:00:20]} c6 {[%emt 0:00:13]} 25. Nd4 {[%emt 0:00:03]} Ra8 {[%emt 0:00:01]} 26. Nf5 {[%emt 0:01:04]} a4 {[%emt 0:01:03]} 27. Rd2 {[%emt 0:00:07]} a3 {[%emt 0:00:02]} 28. Rxd6+ {[%emt 0:00:14]} Kc7 {[%emt 0:00:03]} 29. Rd1 {[%emt 0:00:26]} b5 {[%emt 0:00:12]} 30. e5 {[%emt 0:00:28]} c5 {[%emt 0:00:08]} 31. e6 {[%emt 0:00:01]} b4 {[%emt 0:00:01]} 32. Be5+ {[%emt 0:00:01]} Kc6 {[%emt 0:00:46]} 33. e7 {[%emt 0:00:13]} Re8 {[%emt 0:01:35]} 34. Rd6+ {[%emt 0:00:32]} Kb5 {[%emt 0:00:25]} 35. Re6 {[%emt 0:00:04]} Ka4 {[%emt 0:00:37]} 36. Ng7 {[%emt 0:00:14]} Rxg7 {[%emt 0:00:01]} 37. Bxg7 {[%emt 0:00:01]} b3 {[%emt 0:00:00]} 38. f5 {[%emt 0:02:36]} b2 {[%emt 0:00:17]} 39. Re1 {[%emt 0:00:09]} Rxe7 {[%emt 0:00:17]} 40. Rxe7 {[%emt 0:00:03]} Kb3 {[%emt 0:02:33]} 41. Rb7+ {[%emt 0:00:14]} Kc2 {[%emt 0:00:03]} 42. f6 {[%emt 0:00:09]} a2 {[%emt 0:00:01]} 43. Rxb2+ {[%emt 0:00:03]} 1-0

[Event "Cellavision Cup 2019"]
[Site "Lund"]
[Date "2019.08.02"]
[Round "2.13"]
[White "Seo, Jung Min"]
[Black "Jafarzadeh, Mehrdad"]
[Result "1-0"]
[ECO "B13"]
[WhiteElo "2399"]
[BlackElo "2089"]
[Annotator "ChessBase"]
[PlyCount "80"]
[EventDate "2019.08.02"]
[EventType "swiss"]
[EventCountry "SWE"]
[SourceTitle "playchess.com"]
[Source "ChessBase"]
[SourceQuality "1"]
[TimeControl "900+5"]

1. e4 {[%emt 0:00:00]} c6 {[%emt 0:00:00]} 2. d4 {[%emt 0:00:02]} d5 {[%emt 0:00:03]} 3. exd5 {[%emt 0:00:08]} cxd5 {[%emt 0:00:03]} 4. Bd3 {[%emt 0:00:01]} Nc6 {[%emt 0:00:05]} 5. c3 {[%emt 0:00:02]} Nf6 {[%emt 0:00:04]} 6. h3 {[%emt 0:00:17]} e5 {[%emt 0:00:10]} 7. dxe5 {[%emt 0:00:02]} Nxe5 {[%emt 0:00:03]} 8. Bb5+ {[%emt 0:00:06]} Bd7 {[%emt 0:00:20]} 9. Bxd7+ {[%emt 0:00:01]} Qxd7 {[%emt 0:00:09]} 10. Nf3 {[%emt 0:00:03]} Nc6 {[%emt 0:01:00]} 11. O-O {[%emt 0:00:13]} Be7 {[%emt 0:00:07]} 12. Bf4 {[%emt 0:00:09]} O-O {[%emt 0:00:10]} 13. Nbd2 {[%emt 0:00:01]} d4 {[%emt 0:00:28]} 14. cxd4 {[%emt 0:01:07]} Nxd4 {[%emt 0:00:13]} 15. Be5 {[%emt 0:00:07]} Nc6 {[%emt 0:00:25]} 16. Bxf6 {[%emt 0:00:11]} Bxf6 {[%emt 0:00:07]} 17. Ne4 {[%emt 0:00:03]} Qf5 {[%emt 0:00:48]} 18. Nxf6+ {[%emt 0:00:38]} Qxf6 {[%emt 0:00:05]} 19. Qb3 {[%emt 0:00:02]} b6 {[%emt 0:00:59]} 20. Rac1 {[%emt 0:00:04]} Nd4 {[%emt 0:00:48]} 21. Nxd4 {[%emt 0:00:05]} Qxd4 {[%emt 0:00:03]} 22. Rfd1 {[%emt 0:00:04]} Qf4 {[%emt 0:00:18]} 23. Rc4 {[%emt 0:00:42]} Qe5 {[%emt 0:00:22]} 24. Rcd4 {[%emt 0:00:59]} h6 {[%emt 0:00:21]} 25. Rd7 {[%emt 0:00:06]} Qf6 {[%emt 0:00:46]} 26. R1d6 {[%emt 0:01:13]} Qe5 {[%emt 0:00:16]} 27. Rd1 {[%emt 0:00:37]} Qf6 {[%emt 0:00:15]} 28. Qa3 {[%emt 0:01:18]} Rfe8 {[%emt 0:01:23]} 29. b3 {[%emt 0:02:05]} Re2 {[%emt 0:00:32]} 30. Rf1 {[%emt 0:00:04]} Rc8 {[%emt 0:01:43]} 31. Rd6 {[%emt 0:03:44]} Qf4 {[%emt 0:01:38]} 32. Qa6 {[%emt 0:00:34]} Rcc2 {[%emt 0:01:16]} 33. Rd8+ {[%emt 0:00:08]} Kh7 {[%emt 0:00:10]} 34. Qd3+ {[%emt 0:00:02]} f5 {[%emt 0:00:56]} 35. Qd5 {[%emt 0:02:18]} Rxf2 {[%emt 0:01:18]} 36. Qg8+ {[%emt 0:00:02]} Kg6 {[%emt 0:00:01]} 37. Qe6+ {[%emt 0:00:13]} Kh7 {[%emt 0:00:11]} 38. Qg8+ {[%emt 0:00:04]} Kg6 {[%emt 0:00:03]} 39. Qe6+ {[%emt 0:00:01]} Kh5 {[%emt 0:00:24]} 40. Qf7+ {[%emt 0:00:24]} Kh4 1-0

[Event "Cellavision Cup 2019"]
[Site "Lund"]
[Date "2019.08.02"]
[Round "2.14"]
[White "Pettersson, Alexander"]
[Black "Kristiansen, Jens"]
[Result "0-1"]
[ECO "A56"]
[WhiteElo "2083"]
[BlackElo "2400"]
[Annotator "NA"]
[PlyCount "60"]
[EventDate "2019.08.02"]
[EventType "swiss"]
[EventCountry "SWE"]
[SourceTitle "playchess.com"]
[Source "ChessBase"]
[SourceQuality "1"]
[TimeControl "900+5"]

1. d4 {[%emt 0:00:00]} Nf6 {[%emt 0:00:00]} 2. c4 {[%emt 0:00:00]} c5 {[%emt 0:00:03]} 3. d5 {[%emt 0:00:04]} e5 {[%emt 0:00:02]} 4. Nc3 {[%emt 0:00:16]} d6 {[%emt 0:00:02]} 5. e4 {[%emt 0:00:06]} g6 {[%emt 0:00:03]} 6. Be2 {[%emt 0:00:06]} Bg7 {[%emt 0:00:06]} 7. Nf3 {[%emt 0:00:11]} O-O {[%emt 0:00:05]} 8. O-O {[%emt 0:00:05]} Ne8 {[%emt 0:00:13]} 9. Ne1 {[%emt 0:01:18]} Nd7 {[%emt 0:00:12]} 10. Nd3 {[%emt 0:00:16]} f5 {[%emt 0:00:13]} 11. f4 {[%emt 0:00:32]} a6 {[%emt 0:01:04]} 12. fxe5 {[%emt 0:00:21]} Nxe5 {[%emt 0:00:06]} 13. Nxe5 {[%emt 0:00:13]} Bxe5 {[%emt 0:00:03]} 14. Bd2 {[%emt 0:00:45]} Nf6 {[%emt 0:00:54]} 15. Bg5 {[%emt 0:01:42]} Qe8 {[%emt 0:00:39]} 16. exf5 {[%emt 0:01:13]} Bxf5 {[%emt 0:00:08]} 17. Bd3 {[%emt 0:01:08]} Ng4 {[%emt 0:00:58]} 18. h3 {[%emt 0:00:56]} Bd4+ {[%emt 0:00:18]} 19. Kh1 {[%emt 0:00:54]} Nf2+ {[%emt 0:00:14]} 20. Rxf2 {[%emt 0:00:01]} Bxf2 {[%emt 0:00:01]} 21. Bh6 {[%emt 0:02:30]} Rf7 {[%emt 0:00:13]} 22. Bxf5 {[%emt 0:00:10]} Rxf5 {[%emt 0:00:08]} 23. Qg4 {[%emt 0:00:18]} Qe5 {[%emt 0:00:58]} 24. Rf1 {[%emt 0:00:42]} Re8 {[%emt 0:00:35]} 25. a4 {[%emt 0:00:50]} Bd4 {[%emt 0:02:04]} 26. Bf4 {[%emt 0:01:53]} Qf6 {[%emt 0:00:15]} 27. Rf3 {[%emt 0:00:13]} Bxc3 {[%emt 0:01:36]} 28. bxc3 {[%emt 0:00:06]} Re4 {[%emt 0:00:22]} 29. g3 {[%emt 0:00:05]} h5 {[%emt 0:00:12]} 30. Bg5 {[%emt 0:00:26]} hxg4 {[%emt 0:00:10]} 0-1

[Event "Cellavision Cup 2019"]
[Site "Lund"]
[Date "2019.08.02"]
[Round "2.15"]
[White "Jepson, Christian"]
[Black "Pedersen, Lars Wilton"]
[Result "1-0"]
[ECO "E77"]
[WhiteElo "2391"]
[BlackElo "2068"]
[Annotator "NA"]
[PlyCount "61"]
[EventDate "2019.08.02"]
[EventType "swiss"]
[EventCountry "SWE"]
[SourceTitle "playchess.com"]
[Source "ChessBase"]
[SourceQuality "1"]
[TimeControl "900+5"]

1. d4 {[%emt 0:00:00]} Nf6 {[%emt 0:00:04]} 2. c4 {[%emt 0:00:07]} d6 {[%emt 0:00:07]} 3. Nc3 {[%emt 0:00:05]} g6 {[%emt 0:00:36]} 4. e4 {[%emt 0:00:06]} Bg7 {[%emt 0:00:04]} 5. f4 {[%emt 0:00:03]} O-O {[%emt 0:00:28]} 6. Nf3 {[%emt 0:00:04]} c5 {[%emt 0:01:02]} 7. d5 {[%emt 0:00:03]} e6 {[%emt 0:00:21]} 8. Be2 {[%emt 0:04:53]} exd5 {[%emt 0:00:13]} 9. cxd5 {[%emt 0:00:02]} Na6 {[%emt 0:02:50]} 10. O-O {[%emt 0:00:14]} Nc7 {[%emt 0:00:20]} 11. a4 {[%emt 0:00:17]} a6 {[%emt 0:03:09]} 12. Kh1 {[%emt 0:00:31]} Rb8 {[%emt 0:00:21]} 13. e5 {[%emt 0:00:33]} dxe5 {[%emt 0:01:14]} 14. d6 {[%emt 0:00:02]} Ne6 {[%emt 0:00:01]} 15. fxe5 {[%emt 0:00:37]} Nd7 {[%emt 0:01:36]} 16. Qd5 {[%emt 0:00:51]} b6 {[%emt 0:00:24]} 17. Qe4 {[%emt 0:01:04]} Bb7 {[%emt 0:00:09]} 18. Nd5 {[%emt 0:00:45]} Bxd5 {[%emt 0:01:22]} 19. Qxd5 {[%emt 0:00:02]} Qc8 {[%emt 0:00:03]} 20. Bd2 {[%emt 0:01:50]} Qb7 {[%emt 0:00:06]} 21. Qxb7 {[%emt 0:00:07]} Rxb7 {[%emt 0:00:02]} 22. Bxa6 {[%emt 0:00:12]} Ra7 {[%emt 0:00:12]} 23. Bb5 {[%emt 0:03:01]} Nxe5 {[%emt 0:00:11]} 24. Bc3 {[%emt 0:00:03]} Nxf3 {[%emt 0:00:49]} 25. Rxf3 {[%emt 0:00:01]} Nd4 {[%emt 0:00:19]} 26. Bxd4 {[%emt 0:00:02]} Bxd4 {[%emt 0:00:11]} 27. Re1 {[%emt 0:00:01]} Kg7 {[%emt 0:00:31]} 28. b3 {[%emt 0:00:13]} Bf6 {[%emt 0:00:03]} 29. d7 {[%emt 0:00:13]} Raa8 {[%emt 0:00:31]} 30. Re8 {[%emt 0:00:08]} Rd8 {[%emt 0:00:00]} 31. Rd3 {[%emt 0:00:13]} 1-0

[Event "Cellavision Cup 2019"]
[Site "Lund"]
[Date "2019.08.02"]
[Round "2.16"]
[White "Karlsson, Jorgen"]
[Black "Lindberg, Bengt"]
[Result "0-1"]
[ECO "D01"]
[WhiteElo "2114"]
[BlackElo "2384"]
[Annotator "NA"]
[PlyCount "74"]
[EventDate "2019.08.02"]
[EventType "swiss"]
[EventCountry "SWE"]
[SourceTitle "playchess.com"]
[Source "ChessBase"]
[SourceQuality "1"]
[TimeControl "900+5"]

1. d4 {[%emt 0:00:00]} Nf6 {[%emt 0:00:00]} 2. Nc3 {[%emt 0:00:04]} d5 {[%emt 0:00:08]} 3. Bg5 {[%emt 0:00:02]} c5 {[%emt 0:00:15]} 4. e3 {[%emt 0:00:08]} cxd4 {[%emt 0:00:41]} 5. exd4 {[%emt 0:00:03]} Bg4 {[%emt 0:00:39]} 6. Be2 {[%emt 0:00:52]} Bxe2 {[%emt 0:00:07]} 7. Ngxe2 {[%emt 0:00:03]} e6 {[%emt 0:00:17]} 8. O-O {[%emt 0:00:08]} Be7 {[%emt 0:00:17]} 9. Qd3 {[%emt 0:00:07]} Nc6 {[%emt 0:00:22]} 10. Rfd1 {[%emt 0:01:59]} O-O {[%emt 0:00:20]} 11. Ng3 {[%emt 0:01:33]} Rc8 {[%emt 0:00:32]} 12. a3 {[%emt 0:01:03]} a6 {[%emt 0:00:14]} 13. Nce2 {[%emt 0:00:41]} b5 {[%emt 0:00:40]} 14. c3 {[%emt 0:00:44]} Na5 {[%emt 0:00:27]} 15. Nf4 {[%emt 0:00:30]} Nc4 {[%emt 0:00:22]} 16. Rab1 {[%emt 0:00:01]} Nd6 {[%emt 0:00:48]} 17. Bxf6 {[%emt 0:00:28]} Bxf6 {[%emt 0:00:03]} 18. Re1 {[%emt 0:00:45]} g6 {[%emt 0:00:46]} 19. Qf3 {[%emt 0:00:25]} Bg7 {[%emt 0:00:15]} 20. Nd3 {[%emt 0:00:15]} a5 {[%emt 0:00:28]} 21. Re2 {[%emt 0:01:16]} Rc7 {[%emt 0:01:06]} 22. Rbe1 {[%emt 0:00:04]} Nc4 {[%emt 0:00:15]} 23. Qg4 {[%emt 0:00:30]} h5 {[%emt 0:00:33]} 24. Qh3 {[%emt 0:00:34]} Nd6 {[%emt 0:00:57]} 25. Nf4 {[%emt 0:00:18]} h4 {[%emt 0:01:17]} 26. Nf1 {[%emt 0:00:01]} b4 {[%emt 0:00:45]} 27. axb4 {[%emt 0:00:02]} axb4 {[%emt 0:00:01]} 28. Re3 {[%emt 0:02:52]} bxc3 {[%emt 0:00:12]} 29. bxc3 {[%emt 0:00:03]} Ne4 {[%emt 0:00:36]} 30. Ne2 {[%emt 0:00:26]} f5 {[%emt 0:00:39]} 31. f4 {[%emt 0:00:15]} g5 {[%emt 0:00:46]} 32. g3 {[%emt 0:00:02]} g4 {[%emt 0:00:26]} 33. Qxh4 {[%emt 0:00:02]} Bf6 {[%emt 0:00:16]} 34. Qh5 {[%emt 0:00:14]} Rh7 {[%emt 0:00:15]} 35. Qxh7+ {[%emt 0:00:27]} Kxh7 {[%emt 0:00:03]} 36. Rb1 {[%emt 0:00:03]} Qc7 {[%emt 0:00:09]} 37. Rd3 {[%emt 0:00:37]} Rb8 {[%emt 0:00:10]} 0-1